[Event "Titled Tuesday Blitz July 11 Early 2023"]
[White "Postlmayer, Jakob"]
[Black "Ahmad, Khagan"]
[WhiteFideId "1643622"]
[BlackFideId "13431552"]
[WhiteElo "2491"]
[BlackElo "2623"]
[Result "0-1"]
[Round "9"]
[TimeControl "180+2"]
[Date "2023.07.11"]
[WhiteClock "0:00:00"]
[BlackClock "0:00:04"]
[Board "76"]

1. c4 {[%clk 0:03:00]}  c5 {[%clk 0:02:59]} 2. Nf3 {[%clk 0:03:00]}  Nf6 {[%clk 0:02:59]} 3. Nc3 {[%clk 0:02:59]}  Nc6 {[%clk 0:02:58]} 4. e3 {[%clk 0:02:59]}  e5 {[%clk 0:02:57]} 5. Be2 {[%clk 0:02:52]}  a6 {[%clk 0:02:43]} 6. O-O {[%clk 0:02:50]}  d5 {[%clk 0:02:42]} 7. d4 {[%clk 0:02:47]}  cxd4 {[%clk 0:02:37]} 8. exd4 {[%clk 0:02:45]}  e4 {[%clk 0:02:26]} 9. Ne5 {[%clk 0:02:44]}  Bd6 {[%clk 0:02:11]} 10. cxd5 {[%clk 0:02:14]}  Nxe5 {[%clk 0:02:09]} 11. dxe5 {[%clk 0:02:14]}  Bxe5 {[%clk 0:02:09]} 12. Nxe4 {[%clk 0:02:14]}  O-O {[%clk 0:01:24]} 13. Nxf6+ {[%clk 0:02:11]}  Qxf6 {[%clk 0:01:22]} 14. Qb3 {[%clk 0:02:05]}  b5 {[%clk 0:01:12]} 15. a4 {[%clk 0:01:59]}  bxa4 {[%clk 0:01:07]} 16. Rxa4 {[%clk 0:02:00]}  Rb8 {[%clk 0:01:02]} 17. Rb4 {[%clk 0:01:46]}  Bxh2+ {[%clk 0:00:52]} 18. Kxh2 {[%clk 0:01:19]}  Qd6+ {[%clk 0:00:49]} 19. Bf4 {[%clk 0:01:03]}  Qxb4 {[%clk 0:00:47]} 20. Qxb4 {[%clk 0:01:02]}  Rxb4 {[%clk 0:00:47]} 21. Bd6 {[%clk 0:01:03]}  Rxb2 {[%clk 0:00:42]} 22. Bxf8 {[%clk 0:01:02]}  Kxf8 {[%clk 0:00:42]} 23. Rc1 {[%clk 0:00:49]}  Rxe2 {[%clk 0:00:18]} 24. Rxc8+ {[%clk 0:00:48]}  Ke7 {[%clk 0:00:19]} 25. Rc7+ {[%clk 0:00:48]}  Ke8 {[%clk 0:00:17]} 26. Kg3 {[%clk 0:00:43]}  Rd2 {[%clk 0:00:14]} 27. Ra7 {[%clk 0:00:40]}  Rxd5 {[%clk 0:00:13]} 28. Rxa6 {[%clk 0:00:40]}  g6 {[%clk 0:00:14]} 29. f3 {[%clk 0:00:38]}  Kf8 {[%clk 0:00:14]} 30. Ra7 {[%clk 0:00:37]}  Kg7 {[%clk 0:00:14]} 31. Kh3 {[%clk 0:00:35]}  h5 {[%clk 0:00:15]} 32. g4 {[%clk 0:00:34]}  hxg4+ {[%clk 0:00:13]} 33. Kxg4 {[%clk 0:00:34]}  Rd4+ {[%clk 0:00:13]} 34. Kg3 {[%clk 0:00:33]}  Kf6 {[%clk 0:00:12]} 35. Ra6+ {[%clk 0:00:32]}  Kg5 {[%clk 0:00:13]} 36. Ra5+ {[%clk 0:00:28]}  f5 {[%clk 0:00:13]} 37. Rb5 {[%clk 0:00:28]}  Ra4 {[%clk 0:00:13]} 38. Rc5 {[%clk 0:00:27]}  Rh4 {[%clk 0:00:11]} 39. Rb5 {[%clk 0:00:26]}  Rd4 {[%clk 0:00:07]} 40. Ra5 {[%clk 0:00:25]}  Rd1 {[%clk 0:00:07]} 41. Ra4 {[%clk 0:00:22]}  Rg1+ {[%clk 0:00:07]} 42. Kf2 {[%clk 0:00:22]}  Rh1 {[%clk 0:00:06]} 43. Kg2 {[%clk 0:00:22]}  Rh4 {[%clk 0:00:06]} 44. Ra6 {[%clk 0:00:21]}  Kf4 {[%clk 0:00:03]} 45. Ra4+ {[%clk 0:00:19]}  Kg5 {[%clk 0:00:04]} 46. Ra6 {[%clk 0:00:19]}  Rb4 {[%clk 0:00:04]} 47. Kg3 {[%clk 0:00:18]}  f4+ {[%clk 0:00:05]} 48. Kh3 {[%clk 0:00:17]}  Kh5 {[%clk 0:00:04]} 49. Ra5+ {[%clk 0:00:14]}  g5 {[%clk 0:00:04]} 50. Ra8 {[%clk 0:00:14]}  Rb1 {[%clk 0:00:04]} 51. Rh8+ {[%clk 0:00:13]}  Kg6 {[%clk 0:00:04]} 52. Rg8+ {[%clk 0:00:13]}  Kh6 {[%clk 0:00:05]} 53. Rh8+ {[%clk 0:00:12]}  Kg7 {[%clk 0:00:05]} 54. Ra8 {[%clk 0:00:12]}  Rg1 {[%clk 0:00:05]} 55. Ra3 {[%clk 0:00:12]}  Rg3+ {[%clk 0:00:05]} 56. Kh2 {[%clk 0:00:12]}  Kg6 {[%clk 0:00:06]} 57. Rb3 {[%clk 0:00:12]}  Kh5 {[%clk 0:00:06]} 58. Ra3 {[%clk 0:00:12]}  Kh4 {[%clk 0:00:07]} 59. Rb3 {[%clk 0:00:08]}  g4 {[%clk 0:00:07]} 60. Rb8 {[%clk 0:00:07]}  Rh3+ {[%clk 0:00:05]} 61. Kg2 {[%clk 0:00:04]}  Rg3+ {[%clk 0:00:05]} 62. Kh2 {[%clk 0:00:04]}  Rxf3 {[%clk 0:00:06]} 63. Rh8+ {[%clk 0:00:03]}  Kg5 {[%clk 0:00:07]} 64. Rg8+ {[%clk 0:00:03]}  Kf5 {[%clk 0:00:08]} 65. Rf8+ {[%clk 0:00:03]}  Ke6 {[%clk 0:00:08]} 66. Rg8 {[%clk 0:00:04]}  Rh3+ {[%clk 0:00:06]} 67. Kg2 {[%clk 0:00:04]}  f3+ {[%clk 0:00:07]} 68. Kf2 {[%clk 0:00:04]}  Rh2+ {[%clk 0:00:07]} 69. Kf1 {[%clk 0:00:03]}  Rg2 {[%clk 0:00:05]} 70. Rg5 {[%clk 0:00:03]}  Kf6 {[%clk 0:00:05]} 71. Ra5 {[%clk 0:00:03]}  Re2 {[%clk 0:00:05]} 72. Rh5 {[%clk 0:00:02]}  Kg6 {[%clk 0:00:05]} 73. Ra5 {[%clk 0:00:01]}  Rb2 {[%clk 0:00:05]} 74. Ra6+ {[%clk 0:00:01]}  Kg5 {[%clk 0:00:05]} 75. Ra4 {[%clk 0:00:00]}  g3 {[%clk 0:00:04]} 0-1


[Site "https://www.chess.com"]

[Event "Titled Tuesday Blitz July 11 Early 2023"]
[White "Ezat, Mohamed"]
[Black "Ocelak, Jakub"]
[WhiteFideId "10600906"]
[BlackFideId "23707933"]
[WhiteElo "2604"]
[BlackElo "2475"]
[Result "0-1"]
[Round "9"]
[TimeControl "180+2"]
[Date "2023.07.11"]
[WhiteClock "0:00:14"]
[BlackClock "0:00:36"]
[Board "78"]

1. e4 {[%clk 0:03:00]}  e5 {[%clk 0:02:59]} 2. Nf3 {[%clk 0:03:00]}  Nc6 {[%clk 0:03:00]} 3. Bb5 {[%clk 0:02:55]}  Nf6 {[%clk 0:02:59]} 4. Qe2 {[%clk 0:02:54]}  Bd6 {[%clk 0:02:59]} 5. d4 {[%clk 0:02:45]}  Nxd4 {[%clk 0:02:15]} 6. Nxd4 {[%clk 0:02:42]}  exd4 {[%clk 0:02:16]} 7. e5 {[%clk 0:02:36]}  O-O {[%clk 0:02:15]} 8. O-O {[%clk 0:02:29]}  Re8 {[%clk 0:02:14]} 9. f4 {[%clk 0:02:28]}  Bc5 {[%clk 0:02:12]} 10. Qc4 {[%clk 0:02:26]}  Ne4 {[%clk 0:01:58]} 11. Qd3 {[%clk 0:02:02]}  c6 {[%clk 0:01:45]} 12. Ba4 {[%clk 0:01:56]}  d5 {[%clk 0:01:44]} 13. Nd2 {[%clk 0:01:43]}  Bf5 {[%clk 0:01:41]} 14. Nb3 {[%clk 0:01:26]}  Bb6 {[%clk 0:01:23]} 15. Nxd4 {[%clk 0:00:37]}  f6 {[%clk 0:01:01]} 16. Kh1 {[%clk 0:00:34]}  Nf2+ {[%clk 0:00:59]} 17. Rxf2 {[%clk 0:00:33]}  Bxd3 {[%clk 0:00:59]} 18. Be3 {[%clk 0:00:30]}  Be4 {[%clk 0:00:57]} 19. Bb3 {[%clk 0:00:29]}  fxe5 {[%clk 0:00:55]} 20. fxe5 {[%clk 0:00:28]}  Rxe5 {[%clk 0:00:50]} 21. Re1 {[%clk 0:00:29]}  Qh4 {[%clk 0:00:46]} 22. Kg1 {[%clk 0:00:26]}  Rae8 {[%clk 0:00:45]} 23. c3 {[%clk 0:00:26]}  h6 {[%clk 0:00:40]} 24. g3 {[%clk 0:00:25]}  Qh3 {[%clk 0:00:38]} 25. Bf4 {[%clk 0:00:17]}  R5e7 {[%clk 0:00:37]} 26. Bd6 {[%clk 0:00:16]}  Rf7 {[%clk 0:00:35]} 27. Rxf7 {[%clk 0:00:14]}  Kxf7 {[%clk 0:00:36]} 28. Bc2 {[%clk 0:00:14]}  Qg2# {[%clk 0:00:36]} 0-1


[Site "https://www.chess.com"]

[Event "Titled Tuesday Blitz July 11 Early 2023"]
[White "Sadykov, Ramil"]
[Black "Kopczynski, Michal"]
[WhiteFideId "24113590"]
[BlackFideId "1124200"]
[WhiteElo "2599"]
[BlackElo "2471"]
[Result "1-0"]
[Round "9"]
[TimeControl "180+2"]
[Date "2023.07.11"]
[WhiteClock "0:00:04"]
[BlackClock "0:00:07"]
[Board "79"]

1. d4 {[%clk 0:02:59]}  Nf6 {[%clk 0:02:58]} 2. c4 {[%clk 0:02:59]}  g6 {[%clk 0:02:57]} 3. Nc3 {[%clk 0:02:59]}  Bg7 {[%clk 0:02:58]} 4. e4 {[%clk 0:02:59]}  d6 {[%clk 0:02:58]} 5. Be2 {[%clk 0:02:58]}  O-O {[%clk 0:02:58]} 6. Be3 {[%clk 0:02:56]}  e5 {[%clk 0:02:59]} 7. d5 {[%clk 0:02:53]}  Ne8 {[%clk 0:02:51]} 8. g4 {[%clk 0:02:48]}  c5 {[%clk 0:02:49]} 9. Qd2 {[%clk 0:02:40]}  Na6 {[%clk 0:02:48]} 10. h4 {[%clk 0:02:35]}  Nac7 {[%clk 0:02:47]} 11. h5 {[%clk 0:02:33]}  a6 {[%clk 0:02:45]} 12. Bh6 {[%clk 0:02:27]}  Qe7 {[%clk 0:02:40]} 13. Bxg7 {[%clk 0:02:19]}  Kxg7 {[%clk 0:02:41]} 14. Nh3 {[%clk 0:02:08]}  h6 {[%clk 0:02:30]} 15. g5 {[%clk 0:02:02]}  hxg5 {[%clk 0:02:27]} 16. Nxg5 {[%clk 0:01:56]}  Rh8 {[%clk 0:02:21]} 17. O-O-O {[%clk 0:01:43]}  f6 {[%clk 0:02:15]} 18. Nf3 {[%clk 0:01:12]}  g5 {[%clk 0:02:12]} 19. Rdg1 {[%clk 0:01:12]}  Kh6 {[%clk 0:02:04]} 20. Rg3 {[%clk 0:01:00]}  Rg8 {[%clk 0:01:57]} 21. Rhg1 {[%clk 0:01:00]}  Kh7 {[%clk 0:01:47]} 22. Nh4 {[%clk 0:00:55]}  b5 {[%clk 0:01:42]} 23. Nd1 {[%clk 0:00:53]}  bxc4 {[%clk 0:01:34]} 24. Ne3 {[%clk 0:00:54]}  c3 {[%clk 0:01:34]} 25. bxc3 {[%clk 0:00:52]}  Rb8 {[%clk 0:01:27]} 26. Nef5 {[%clk 0:00:49]}  Bxf5 {[%clk 0:01:27]} 27. Nxf5 {[%clk 0:00:50]}  Qd7 {[%clk 0:01:24]} 28. Qc2 {[%clk 0:00:42]}  Nb5 {[%clk 0:01:15]} 29. Qa4 {[%clk 0:00:36]}  Qb7 {[%clk 0:01:10]} 30. Kd2 {[%clk 0:00:31]}  Nd4 {[%clk 0:00:52]} 31. cxd4 {[%clk 0:00:26]}  Qb2+ {[%clk 0:00:52]} 32. Ke1 {[%clk 0:00:11]}  Qc1+ {[%clk 0:00:44]} 33. Bd1 {[%clk 0:00:12]}  Rb1 {[%clk 0:00:41]} 34. Ke2 {[%clk 0:00:07]}  cxd4 {[%clk 0:00:20]} 35. Rd3 {[%clk 0:00:05]}  Rb2+ {[%clk 0:00:18]} 36. Kf1 {[%clk 0:00:04]}  Rd2 {[%clk 0:00:16]} 37. Rxd2 {[%clk 0:00:05]}  Qxd2 {[%clk 0:00:17]} 38. Kg2 {[%clk 0:00:04]}  Qf4 {[%clk 0:00:15]} 39. Re1 {[%clk 0:00:03]}  Ng7 {[%clk 0:00:14]} 40. Qd7 {[%clk 0:00:02]}  Kh8 {[%clk 0:00:14]} 41. Ne7 {[%clk 0:00:03]}  Nxh5 {[%clk 0:00:08]} 42. Bxh5 {[%clk 0:00:03]}  Qh4 {[%clk 0:00:08]} 43. Rh1 {[%clk 0:00:03]}  Qxh1+ {[%clk 0:00:08]} 44. Kxh1 {[%clk 0:00:04]}  Rg7 {[%clk 0:00:08]} 45. Qe8+ {[%clk 0:00:04]}  Kh7 {[%clk 0:00:08]} 46. Bg6+ {[%clk 0:00:05]}  Kh6 {[%clk 0:00:07]} 47. Nf5# {[%clk 0:00:04]} 1-0


[Site "https://www.chess.com"]

[Event "Titled Tuesday Blitz July 11 Early 2023"]
[White "Parpiev, Isaak"]
[Black "Kukreja Sankalp"]
[WhiteFideId "34281576"]
[BlackFideId "45027676"]
[WhiteElo "2579"]
[BlackElo "2444"]
[Result "1-0"]
[Round "9"]
[TimeControl "180+2"]
[Date "2023.07.11"]
[WhiteClock "0:00:05"]
[BlackClock "0:01:05"]
[Board "82"]

1. d4 {[%clk 0:02:55]}  d5 {[%clk 0:02:58]} 2. c4 {[%clk 0:02:54]}  c6 {[%clk 0:02:50]} 3. Nc3 {[%clk 0:02:53]}  Nf6 {[%clk 0:02:50]} 4. Nf3 {[%clk 0:02:51]}  dxc4 {[%clk 0:02:47]} 5. e3 {[%clk 0:02:50]}  b5 {[%clk 0:02:35]} 6. a4 {[%clk 0:02:49]}  b4 {[%clk 0:02:35]} 7. Na2 {[%clk 0:02:45]}  e6 {[%clk 0:02:35]} 8. Bxc4 {[%clk 0:02:43]}  Bb7 {[%clk 0:02:34]} 9. O-O {[%clk 0:02:42]}  Be7 {[%clk 0:02:33]} 10. a5 {[%clk 0:02:36]}  Qxa5 {[%clk 0:02:30]} 11. Bd2 {[%clk 0:02:36]}  Qb6 {[%clk 0:02:27]} 12. Qe1 {[%clk 0:02:04]}  a5 {[%clk 0:02:26]} 13. e4 {[%clk 0:02:04]}  Nbd7 {[%clk 0:02:22]} 14. b3 {[%clk 0:02:01]}  O-O {[%clk 0:02:21]} 15. e5 {[%clk 0:02:01]}  Nd5 {[%clk 0:02:20]} 16. Nc1 {[%clk 0:01:45]}  c5 {[%clk 0:02:19]} 17. Ne2 {[%clk 0:01:43]}  Ba6 {[%clk 0:02:17]} 18. h4 {[%clk 0:01:34]}  Qb7 {[%clk 0:02:08]} 19. h5 {[%clk 0:01:32]}  h6 {[%clk 0:02:06]} 20. Qc1 {[%clk 0:01:28]}  Rfc8 {[%clk 0:02:04]} 21. Bxh6 {[%clk 0:01:20]}  Bf8 {[%clk 0:01:59]} 22. Bg5 {[%clk 0:00:58]}  cxd4 {[%clk 0:01:58]} 23. Nexd4 {[%clk 0:00:57]}  Bxc4 {[%clk 0:01:53]} 24. bxc4 {[%clk 0:00:57]}  Nc3 {[%clk 0:01:53]} 25. Qe3 {[%clk 0:00:51]}  Rxc4 {[%clk 0:01:51]} 26. h6 {[%clk 0:00:49]}  Nd5 {[%clk 0:01:51]} 27. Qe4 {[%clk 0:00:44]}  gxh6 {[%clk 0:01:50]} 28. Bd2 {[%clk 0:00:39]}  Bg7 {[%clk 0:01:47]} 29. Rfc1 {[%clk 0:00:33]}  Nc5 {[%clk 0:01:44]} 30. Qg4 {[%clk 0:00:30]}  Rxc1+ {[%clk 0:01:39]} 31. Rxc1 {[%clk 0:00:31]}  Nd3 {[%clk 0:01:39]} 32. Bxh6 {[%clk 0:00:30]}  f5 {[%clk 0:01:38]} 33. exf6 {[%clk 0:00:26]}  Nxf6 {[%clk 0:01:23]} 34. Qxe6+ {[%clk 0:00:26]}  Kh8 {[%clk 0:01:18]} 35. Bxg7+ {[%clk 0:00:22]}  Qxg7 {[%clk 0:01:19]} 36. Nf5 {[%clk 0:00:13]}  Qxg2+ {[%clk 0:01:18]} 37. Kxg2 {[%clk 0:00:12]}  Nf4+ {[%clk 0:01:19]} 38. Kg3 {[%clk 0:00:12]}  Nxe6 {[%clk 0:01:20]} 39. Ne5 {[%clk 0:00:12]}  a4 {[%clk 0:01:18]} 40. Rc6 {[%clk 0:00:06]}  Ne4+ {[%clk 0:01:17]} 41. Kf3 {[%clk 0:00:06]}  N6g5+ {[%clk 0:01:16]} 42. Ke3 {[%clk 0:00:05]}  a3 {[%clk 0:01:15]} 43. Rc7 {[%clk 0:00:05]}  a2 {[%clk 0:01:06]} 44. Ng6+ {[%clk 0:00:05]}  Kg8 {[%clk 0:01:05]} 45. Nh6# {[%clk 0:00:05]} 1-0


[Site "https://www.chess.com"]

[Event "Titled Tuesday Blitz July 11 Early 2023"]
[White "Stork, Oliver"]
[Black "ATM622"]
[WhiteFideId "12955728"]
[WhiteElo "2432"]
[BlackElo "2572"]
[Result "0-1"]
[Round "9"]
[TimeControl "180+2"]
[Date "2023.07.11"]
[WhiteClock "0:02:11"]
[BlackClock "0:02:39"]
[Board "85"]

1. e4 {[%clk 0:03:00]}  e5 {[%clk 0:02:59]} 2. Nf3 {[%clk 0:03:00]}  Nf6 {[%clk 0:02:58]} 3. Nc3 {[%clk 0:02:58]}  Nc6 {[%clk 0:02:58]} 4. Bb5 {[%clk 0:02:59]}  Bc5 {[%clk 0:02:57]} 5. d3 {[%clk 0:02:39]}  d6 {[%clk 0:02:54]} 6. O-O {[%clk 0:02:37]}  O-O {[%clk 0:02:54]} 7. h3 {[%clk 0:02:38]}  h6 {[%clk 0:02:54]} 8. Ne2 {[%clk 0:02:35]}  Ne7 {[%clk 0:02:52]} 9. Ng3 {[%clk 0:02:35]}  c6 {[%clk 0:02:50]} 10. Bc4 {[%clk 0:02:34]}  b5 {[%clk 0:02:49]} 11. Bb3 {[%clk 0:02:34]}  a5 {[%clk 0:02:45]} 12. c3 {[%clk 0:02:33]}  a4 {[%clk 0:02:44]} 13. Bc2 {[%clk 0:02:33]}  Ng6 {[%clk 0:02:43]} 14. d4 {[%clk 0:02:30]}  exd4 {[%clk 0:02:41]} 15. cxd4 {[%clk 0:02:31]}  Bb6 {[%clk 0:02:40]} 16. Bf4 {[%clk 0:02:11]}  Nxf4 {[%clk 0:02:39]} 0-1


[Site "https://www.chess.com"]

[Event "Titled Tuesday Blitz July 11 Early 2023"]
[White "Tanmay Jain"]
[Black "Streltsov, Alexey"]
[WhiteFideId "45015481"]
[BlackFideId "24104434"]
[WhiteElo "2432"]
[BlackElo "2564"]
[Result "1-0"]
[Round "9"]
[TimeControl "180+2"]
[Date "2023.07.11"]
[WhiteClock "0:00:20"]
[BlackClock "0:00:16"]
[Board "87"]

1. Nf3 {[%clk 0:03:00]}  c5 {[%clk 0:03:00]} 2. c4 {[%clk 0:02:58]}  e6 {[%clk 0:03:00]} 3. g3 {[%clk 0:02:57]}  d5 {[%clk 0:02:57]} 4. cxd5 {[%clk 0:02:57]}  exd5 {[%clk 0:02:58]} 5. Bg2 {[%clk 0:02:58]}  Nc6 {[%clk 0:02:57]} 6. O-O {[%clk 0:02:58]}  Bg4 {[%clk 0:02:55]} 7. d3 {[%clk 0:02:51]}  Qd7 {[%clk 0:02:54]} 8. Bf4 {[%clk 0:02:44]}  Nf6 {[%clk 0:02:47]} 9. Nc3 {[%clk 0:02:41]}  Bh3 {[%clk 0:02:44]} 10. e4 {[%clk 0:02:36]}  Bxg2 {[%clk 0:02:44]} 11. Kxg2 {[%clk 0:02:36]}  d4 {[%clk 0:02:24]} 12. Nb1 {[%clk 0:02:34]}  h6 {[%clk 0:02:15]} 13. Na3 {[%clk 0:02:22]}  g5 {[%clk 0:02:14]} 14. Bd2 {[%clk 0:02:21]}  Bg7 {[%clk 0:01:54]} 15. Nc4 {[%clk 0:02:09]}  O-O {[%clk 0:01:53]} 16. a4 {[%clk 0:02:06]}  Ng4 {[%clk 0:01:53]} 17. h3 {[%clk 0:01:58]}  Nge5 {[%clk 0:01:53]} 18. Nfxe5 {[%clk 0:01:59]}  Nxe5 {[%clk 0:01:52]} 19. Nxe5 {[%clk 0:01:57]}  Bxe5 {[%clk 0:01:53]} 20. f4 {[%clk 0:01:58]}  gxf4 {[%clk 0:01:34]} 21. gxf4 {[%clk 0:01:58]}  Bg7 {[%clk 0:01:35]} 22. Kh2 {[%clk 0:01:55]}  f5 {[%clk 0:01:35]} 23. e5 {[%clk 0:01:48]}  Kh7 {[%clk 0:01:33]} 24. Rg1 {[%clk 0:01:38]}  Qf7 {[%clk 0:01:25]} 25. Qf3 {[%clk 0:01:25]}  Rg8 {[%clk 0:01:22]} 26. Rae1 {[%clk 0:01:20]}  Rae8 {[%clk 0:01:17]} 27. b4 {[%clk 0:01:10]}  c4 {[%clk 0:01:07]} 28. dxc4 {[%clk 0:01:05]}  Qxc4 {[%clk 0:01:08]} 29. Qxb7 {[%clk 0:01:02]}  Kh8 {[%clk 0:00:49]} 30. Rg2 {[%clk 0:00:56]}  Bf8 {[%clk 0:00:24]} 31. Rxg8+ {[%clk 0:00:47]}  Qxg8 {[%clk 0:00:25]} 32. Rg1 {[%clk 0:00:47]}  Qa2 {[%clk 0:00:25]} 33. Rg2 {[%clk 0:00:44]}  Re7 {[%clk 0:00:20]} 34. Qc8 {[%clk 0:00:41]}  Rf7 {[%clk 0:00:20]} 35. e6 {[%clk 0:00:39]}  Rf6 {[%clk 0:00:20]} 36. e7 {[%clk 0:00:38]}  Qf7 {[%clk 0:00:20]} 37. exf8=Q+ {[%clk 0:00:37]}  Qxf8 {[%clk 0:00:21]} 38. Qxf8+ {[%clk 0:00:36]}  Rxf8 {[%clk 0:00:22]} 39. Bc1 {[%clk 0:00:31]}  Rc8 {[%clk 0:00:22]} 40. Bb2 {[%clk 0:00:31]}  Rc4 {[%clk 0:00:23]} 41. Rd2 {[%clk 0:00:27]}  Rxb4 {[%clk 0:00:20]} 42. Bxd4+ {[%clk 0:00:28]}  Kh7 {[%clk 0:00:21]} 43. a5 {[%clk 0:00:27]}  a6 {[%clk 0:00:20]} 44. Kg3 {[%clk 0:00:26]}  h5 {[%clk 0:00:21]} 45. Kh4 {[%clk 0:00:25]}  Rb3 {[%clk 0:00:20]} 46. Re2 {[%clk 0:00:24]}  Rd3 {[%clk 0:00:19]} 47. Bb6 {[%clk 0:00:23]}  Rf3 {[%clk 0:00:18]} 48. Bc7 {[%clk 0:00:22]}  Rc3 {[%clk 0:00:16]} 49. Re7+ {[%clk 0:00:22]}  Kg8 {[%clk 0:00:15]} 50. Kxh5 {[%clk 0:00:20]}  Kf8 {[%clk 0:00:16]} 51. Bd6 {[%clk 0:00:19]}  Rxh3+ {[%clk 0:00:17]} 52. Kg6 {[%clk 0:00:19]}  Rd3 {[%clk 0:00:18]} 53. Re6+ {[%clk 0:00:19]}  Rxd6 {[%clk 0:00:16]} 54. Rxd6 {[%clk 0:00:19]}  Ke7 {[%clk 0:00:17]} 55. Rxa6 {[%clk 0:00:20]}  Kd7 {[%clk 0:00:16]} 56. Rb6 {[%clk 0:00:20]} 1-0


[Site "https://www.chess.com"]

[Event "Titled Tuesday Blitz July 11 Early 2023"]
[White "Michalczak, Thomas"]
[Black "Nikologorsky, Matfei"]
[WhiteFideId "4622634"]
[BlackFideId "24102474"]
[WhiteElo "2553"]
[BlackElo "2429"]
[Result "1-0"]
[Round "9"]
[TimeControl "180+2"]
[Date "2023.07.11"]
[WhiteClock "0:00:25"]
[BlackClock "0:00:00"]
[Board "89"]

1. e4 {[%clk 0:03:00]}  c5 {[%clk 0:02:59]} 2. c3 {[%clk 0:03:00]}  d5 {[%clk 0:02:59]} 3. exd5 {[%clk 0:03:00]}  Qxd5 {[%clk 0:03:00]} 4. Nf3 {[%clk 0:03:00]}  Nf6 {[%clk 0:03:00]} 5. Na3 {[%clk 0:02:59]}  Nc6 {[%clk 0:02:56]} 6. Bc4 {[%clk 0:02:59]}  Qd8 {[%clk 0:02:52]} 7. O-O {[%clk 0:02:59]}  e6 {[%clk 0:02:50]} 8. Qe2 {[%clk 0:02:59]}  Be7 {[%clk 0:02:48]} 9. Rd1 {[%clk 0:02:59]}  O-O {[%clk 0:02:47]} 10. d4 {[%clk 0:03:00]}  cxd4 {[%clk 0:02:46]} 11. Nb5 {[%clk 0:03:00]}  Qa5 {[%clk 0:02:21]} 12. Nbxd4 {[%clk 0:02:54]}  Nxd4 {[%clk 0:02:20]} 13. Rxd4 {[%clk 0:02:49]}  b6 {[%clk 0:02:14]} 14. Ne5 {[%clk 0:02:37]}  Qc5 {[%clk 0:01:40]} 15. Bf4 {[%clk 0:02:23]}  Bb7 {[%clk 0:01:33]} 16. Rad1 {[%clk 0:02:17]}  Rfd8 {[%clk 0:01:26]} 17. Nxf7 {[%clk 0:02:04]}  Rxd4 {[%clk 0:01:15]} 18. Rxd4 {[%clk 0:01:51]}  Bd5 {[%clk 0:00:54]} 19. Bxd5 {[%clk 0:01:43]}  exd5 {[%clk 0:00:23]} 20. Qe6 {[%clk 0:01:41]}  Kf8 {[%clk 0:00:24]} 21. Ne5 {[%clk 0:01:11]}  Ke8 {[%clk 0:00:24]} 22. Qf7+ {[%clk 0:01:06]}  Kd8 {[%clk 0:00:24]} 23. Qxg7 {[%clk 0:01:01]}  Rc8 {[%clk 0:00:17]} 24. Qh8+ {[%clk 0:00:44]}  Ne8 {[%clk 0:00:17]} 25. Qxh7 {[%clk 0:00:36]}  Rc7 {[%clk 0:00:12]} 26. Qf5 {[%clk 0:00:32]}  Nd6 {[%clk 0:00:10]} 27. Qe6 {[%clk 0:00:30]}  Qa5 {[%clk 0:00:00]} 28. Rxd5 {[%clk 0:00:25]} 1-0


[Site "https://www.chess.com"]

[Event "Titled Tuesday Blitz July 11 Early 2023"]
[White "Khromkin, Andrey"]
[Black "Bruedigam, Martin"]
[WhiteFideId "4154126"]
[BlackFideId "24608033"]
[WhiteElo "2428"]
[BlackElo "2553"]
[Result "1-0"]
[Round "9"]
[TimeControl "180+2"]
[Date "2023.07.11"]
[WhiteClock "0:00:10"]
[BlackClock "0:00:11"]
[Board "90"]

1. d4 {[%clk 0:02:59]}  Nf6 {[%clk 0:02:57]} 2. c4 {[%clk 0:03:00]}  g6 {[%clk 0:02:58]} 3. Nf3 {[%clk 0:03:00]}  Bg7 {[%clk 0:02:57]} 4. Nc3 {[%clk 0:03:01]}  d5 {[%clk 0:02:56]} 5. cxd5 {[%clk 0:03:02]}  Nxd5 {[%clk 0:02:56]} 6. g3 {[%clk 0:03:02]}  O-O {[%clk 0:02:55]} 7. Bg2 {[%clk 0:03:03]}  Nb6 {[%clk 0:02:54]} 8. O-O {[%clk 0:03:03]}  c6 {[%clk 0:02:50]} 9. e4 {[%clk 0:02:55]}  N8d7 {[%clk 0:02:49]} 10. e5 {[%clk 0:02:50]}  Nb8 {[%clk 0:02:43]} 11. Bg5 {[%clk 0:02:48]}  Re8 {[%clk 0:02:40]} 12. Qc1 {[%clk 0:02:38]}  Na6 {[%clk 0:02:37]} 13. Bh6 {[%clk 0:02:37]}  Bf5 {[%clk 0:02:26]} 14. Bxg7 {[%clk 0:02:34]}  Kxg7 {[%clk 0:02:27]} 15. Qf4 {[%clk 0:02:24]}  Nb4 {[%clk 0:02:20]} 16. g4 {[%clk 0:02:16]}  N6d5 {[%clk 0:02:13]} 17. Qg3 {[%clk 0:02:11]}  Be6 {[%clk 0:01:50]} 18. Ng5 {[%clk 0:01:53]}  Qc8 {[%clk 0:01:46]} 19. Nxe6+ {[%clk 0:01:34]}  Qxe6 {[%clk 0:01:35]} 20. f4 {[%clk 0:01:31]}  Nxc3 {[%clk 0:00:59]} 21. bxc3 {[%clk 0:01:30]}  Nd5 {[%clk 0:00:58]} 22. f5 {[%clk 0:01:29]}  Qc8 {[%clk 0:00:55]} 23. Bxd5 {[%clk 0:01:28]}  cxd5 {[%clk 0:00:56]} 24. f6+ {[%clk 0:01:27]}  exf6 {[%clk 0:00:54]} 25. Rxf6 {[%clk 0:00:58]}  Re6 {[%clk 0:00:52]} 26. Raf1 {[%clk 0:00:58]}  Rxf6 {[%clk 0:00:51]} 27. Rxf6 {[%clk 0:00:58]}  Kg8 {[%clk 0:00:46]} 28. Qf3 {[%clk 0:00:53]}  Qd7 {[%clk 0:00:41]} 29. Rd6 {[%clk 0:00:53]}  Qa4 {[%clk 0:00:35]} 30. Rxd5 {[%clk 0:00:41]}  Rc8 {[%clk 0:00:30]} 31. Rd6 {[%clk 0:00:21]}  Qxa2 {[%clk 0:00:28]} 32. e6 {[%clk 0:00:14]}  Qb1+ {[%clk 0:00:23]} 33. Kg2 {[%clk 0:00:12]}  Qb2+ {[%clk 0:00:22]} 34. Kg3 {[%clk 0:00:10]}  Rxc3 {[%clk 0:00:11]} 35. exf7+ {[%clk 0:00:10]} 1-0


[Site "https://www.chess.com"]